[Event "*** SCC Grand Prix: Titled Tuesday Blitz"]
[Site "Chess.com"]
[Date "2020.07.07"]
[Round "2"]
[White "MFBerna"]
[Black "Alexey_Spirin"]
[Result "1-0"]
[WhiteElo "2384"]
[BlackElo "2048"]
[TimeControl "180+1"]
[EndTime "10:19:03 PDT"]
[Termination "MFBerna won on time"]

1. d4 {[%clk 0:02:59.4]} 1... Nf6 {[%clk 0:02:59.6]} 2. Nf3 {[%clk 0:02:57.3]}
2... b6 {[%clk 0:02:59.6]} 3. g3 {[%clk 0:02:57.2]} 3... Bb7 {[%clk 0:03:00]} 4.
Bg2 {[%clk 0:02:57.2]} 4... e6 {[%clk 0:03:00.7]} 5. O-O {[%clk 0:02:57.3]} 5...
c5 {[%clk 0:03:01.3]} 6. c4 {[%clk 0:02:50.5]} 6... cxd4 {[%clk 0:03:00.6]} 7.
Nxd4 {[%clk 0:02:50.7]} 7... Bxg2 {[%clk 0:03:00.1]} 8. Kxg2 {[%clk 0:02:51.6]}
8... Qc8 {[%clk 0:03:00.4]} 9. b3 {[%clk 0:02:43.9]} 9... a6 {[%clk 0:02:58.1]}
10. Bb2 {[%clk 0:02:39.5]} 10... Qb7+ {[%clk 0:02:55.2]} 11. Kg1 {[%clk
0:02:29.5]} 11... Be7 {[%clk 0:02:55.2]} 12. Nc3 {[%clk 0:02:26.6]} 12... d6
{[%clk 0:02:54.9]} 13. Qd2 {[%clk 0:02:26.4]} 13... Nbd7 {[%clk 0:02:54.2]} 14.
Rfd1 {[%clk 0:02:25]} 14... O-O {[%clk 0:02:53.8]} 15. Rac1 {[%clk 0:02:23.2]}
15... Rfd8 {[%clk 0:02:53.7]} 16. f3 {[%clk 0:02:18.8]} 16... Rac8 {[%clk
0:02:52.8]} 17. e4 {[%clk 0:02:06.1]} 17... Ne5 {[%clk 0:02:51.5]} 18. Qe2
{[%clk 0:02:04.6]} 18... Nc6 {[%clk 0:02:43.4]} 19. Nxc6 {[%clk 0:01:58.1]}
19... Rxc6 {[%clk 0:02:42.1]} 20. Rc2 {[%clk 0:01:43.7]} 20... Rc7 {[%clk
0:02:26.6]} 21. Rcd2 {[%clk 0:01:38.4]} 21... Rcd7 {[%clk 0:02:19.2]} 22. a4
{[%clk 0:01:24.6]} 22... h6 {[%clk 0:02:17.6]} 23. Ba3 {[%clk 0:01:19.5]} 23...
Ne8 {[%clk 0:02:16.7]} 24. Rd3 {[%clk 0:01:04]} 24... Bf6 {[%clk 0:02:00.9]} 25.
f4 {[%clk 0:00:50.1]} 25... Be7 {[%clk 0:01:47.7]} 26. e5 {[%clk 0:00:28.4]}
26... Qc6 {[%clk 0:00:59.6]} 27. Qd2 {[%clk 0:00:20.4]} 27... Bf8 {[%clk
0:00:52.1]} 28. exd6 {[%clk 0:00:16.5]} 28... Bxd6 {[%clk 0:00:42.6]} 29. Bxd6
{[%clk 0:00:15]} 29... Rxd6 {[%clk 0:00:40.6]} 30. Rxd6 {[%clk 0:00:12.5]} 30...
Rxd6 {[%clk 0:00:40.3]} 31. Qe3 {[%clk 0:00:08]} 31... Rxd1+ {[%clk 0:00:37.9]}
32. Nxd1 {[%clk 0:00:08.9]} 32... b5 {[%clk 0:00:30.3]} 33. axb5 {[%clk
0:00:08.2]} 33... axb5 {[%clk 0:00:30.5]} 34. c5 {[%clk 0:00:07.2]} 34... Nc7
{[%clk 0:00:26.1]} 35. Nc3 {[%clk 0:00:06.6]} 35... b4 {[%clk 0:00:22.2]} 36.
Ne4 {[%clk 0:00:05.9]} 36... Nd5 {[%clk 0:00:19.6]} 37. Qd4 {[%clk 0:00:05.8]}
37... f6 {[%clk 0:00:11.8]} 38. Qc4 {[%clk 0:00:05]} 38... Kh7 {[%clk
0:00:01.7]} 39. Kf2 {[%clk 0:00:04.5]} 39... g5 {[%clk 0:00:01.8]} 40. Qd4
{[%clk 0:00:02.7]} 1-0

[Event "*** SCC Grand Prix: Titled Tuesday Blitz"]
[Site "Chess.com"]
[Date "2020.07.07"]
[Round "2"]
[White "Gennady_Kozlov"]
[Black "Dr-Bassem"]
[Result "0-1"]
[WhiteElo "2528"]
[BlackElo "2804"]
[TimeControl "180+1"]
[EndTime "10:19:06 PDT"]
[Termination "Dr-Bassem won by resignation"]

1. b3 {[%clk 0:02:57.3]} 1... e5 {[%clk 0:02:49.6]} 2. Bb2 {[%clk 0:02:58.2]}
2... d6 {[%clk 0:02:48.2]} 3. e3 {[%clk 0:02:58.3]} 3... Nf6 {[%clk 0:02:44.5]}
4. Be2 {[%clk 0:02:57.1]} 4... g6 {[%clk 0:02:44.2]} 5. f4 {[%clk 0:02:56.3]}
5... Nc6 {[%clk 0:02:39.9]} 6. Nf3 {[%clk 0:02:55.5]} 6... Qe7 {[%clk
0:02:29.3]} 7. fxe5 {[%clk 0:02:53.2]} 7... dxe5 {[%clk 0:02:27.8]} 8. Nc3
{[%clk 0:02:45.3]} 8... Bg7 {[%clk 0:02:26.1]} 9. O-O {[%clk 0:02:43.9]} 9...
O-O {[%clk 0:02:25.1]} 10. Bc4 {[%clk 0:02:39.8]} 10... e4 {[%clk 0:02:16.2]}
11. Nd4 {[%clk 0:02:29.2]} 11... Nxd4 {[%clk 0:02:14]} 12. exd4 {[%clk
0:02:25.7]} 12... c6 {[%clk 0:02:07.3]} 13. Qe2 {[%clk 0:02:14.9]} 13... Bg4
{[%clk 0:02:02.2]} 14. Qe3 {[%clk 0:02:12.5]} 14... Rad8 {[%clk 0:01:58.4]} 15.
Rae1 {[%clk 0:02:09.6]} 15... Bf5 {[%clk 0:01:53.9]} 16. h3 {[%clk 0:02:03.9]}
16... h5 {[%clk 0:01:16.2]} 17. Kh1 {[%clk 0:02:01.2]} 17... h4 {[%clk
0:01:06.4]} 18. a4 {[%clk 0:01:57.5]} 18... Nh5 {[%clk 0:00:55.9]} 19. Ne2
{[%clk 0:01:57.2]} 19... b6 {[%clk 0:00:53.5]} 20. Ra1 {[%clk 0:01:55.6]} 20...
Qd7 {[%clk 0:00:36.9]} 21. Ba3 {[%clk 0:01:38.9]} 21... Rfe8 {[%clk 0:00:29.7]}
22. Nc3 {[%clk 0:01:17.1]} 22... Ng3+ {[%clk 0:00:26]} 23. Kh2 {[%clk 0:01:16]}
23... Bxd4 {[%clk 0:00:24.9]} 24. Qh6 {[%clk 0:01:14.2]} 24... Nxf1+ {[%clk
0:00:19.8]} 25. Rxf1 {[%clk 0:01:12.9]} 25... Bg7 {[%clk 0:00:19.8]} 26. Qxh4
{[%clk 0:01:11.7]} 26... Qxd2 {[%clk 0:00:19.6]} 27. Ne2 {[%clk 0:01:11.4]}
27... Qh6 {[%clk 0:00:11]} 28. Qe1 {[%clk 0:01:06.7]} 28... Be5+ {[%clk
0:00:09.4]} 29. Ng3 {[%clk 0:01:05.9]} 29... Qh4 {[%clk 0:00:08.8]} 30. Qe3
{[%clk 0:01:04.6]} 30... c5 {[%clk 0:00:07.4]} 31. Bc1 {[%clk 0:01:03.1]} 31...
Bxg3+ {[%clk 0:00:06.3]} 32. Qxg3 {[%clk 0:01:02.3]} 32... Qxg3+ {[%clk
0:00:07.2]} 33. Kxg3 {[%clk 0:01:03]} 33... e3 {[%clk 0:00:07.9]} 34. Re1 {[%clk
0:01:01.6]} 34... Bxc2 {[%clk 0:00:07.4]} 35. Bxe3 {[%clk 0:01:00.5]} 35... Bd3
{[%clk 0:00:07.3]} 36. Kf3 {[%clk 0:00:46]} 36... Bxc4 {[%clk 0:00:07.3]} 37.
bxc4 {[%clk 0:00:46.9]} 37... Rd3 {[%clk 0:00:07.7]} 38. Re2 {[%clk 0:00:47.2]}
38... Rc3 {[%clk 0:00:07.3]} 39. Kf2 {[%clk 0:00:45.4]} 39... Rxc4 {[%clk
0:00:07.4]} 40. Rd2 {[%clk 0:00:45.9]} 40... Rxa4 {[%clk 0:00:06.8]} 41. Bg5
{[%clk 0:00:43.7]} 41... Rd4 {[%clk 0:00:05.6]} 42. Ra2 {[%clk 0:00:43.3]} 42...
a5 {[%clk 0:00:05.8]} 43. Rb2 {[%clk 0:00:43.1]} 43... Rd6 {[%clk 0:00:05.2]}
44. Bf4 {[%clk 0:00:41.1]} 44... Rf6 {[%clk 0:00:04.8]} 45. Kg3 {[%clk
0:00:41.5]} 45... c4 {[%clk 0:00:05.4]} 46. Bg5 {[%clk 0:00:40.5]} 46... Rc6
{[%clk 0:00:04.9]} 47. h4 {[%clk 0:00:36.2]} 47... c3 {[%clk 0:00:05.3]} 48. Rc2
{[%clk 0:00:36.2]} 48... b5 {[%clk 0:00:05.8]} 49. h5 {[%clk 0:00:35.4]} 49...
gxh5 {[%clk 0:00:05.3]} 50. Kh4 {[%clk 0:00:35.2]} 50... b4 {[%clk 0:00:05.8]}
51. Kxh5 {[%clk 0:00:34.5]} 51... b3 {[%clk 0:00:06.3]} 52. Rc1 {[%clk
0:00:34.2]} 52... b2 {[%clk 0:00:06.7]} 53. Rb1 {[%clk 0:00:32.8]} 53... a4
{[%clk 0:00:07.1]} 54. g4 {[%clk 0:00:30.4]} 54... a3 {[%clk 0:00:07.4]} 55. Re1
{[%clk 0:00:25.7]} 55... Rxe1 {[%clk 0:00:06.3]} 0-1

[Event "*** SCC Grand Prix: Titled Tuesday Blitz"]
[Site "Chess.com"]
[Date "2020.07.07"]
[Round "2"]
[White "talaicito"]
[Black "dopolian"]
[Result "0-1"]
[WhiteElo "2133"]
[BlackElo "2414"]
[TimeControl "180+1"]
[EndTime "10:19:07 PDT"]
[Termination "dopolian won on time"]

1. d4 {[%clk 0:03:00.9]} 1... Nf6 {[%clk 0:02:59.8]} 2. Nc3 {[%clk 0:03:00.7]}
2... d5 {[%clk 0:02:59.1]} 3. Bf4 {[%clk 0:03:00.1]} 3... g6 {[%clk 0:02:57.6]}
4. e3 {[%clk 0:02:59.8]} 4... c6 {[%clk 0:02:56.7]} 5. Nf3 {[%clk 0:02:57.7]}
5... Bg7 {[%clk 0:02:56.7]} 6. Ne5 {[%clk 0:02:56.8]} 6... O-O {[%clk
0:02:56.4]} 7. h4 {[%clk 0:02:56.8]} 7... h5 {[%clk 0:02:55.6]} 8. Be2 {[%clk
0:02:56.5]} 8... Nbd7 {[%clk 0:02:48.2]} 9. Qd2 {[%clk 0:02:45.4]} 9... Nxe5
{[%clk 0:02:48]} 10. dxe5 {[%clk 0:02:44.3]} 10... Ne4 {[%clk 0:02:48.4]} 11.
Nxe4 {[%clk 0:02:41]} 11... dxe4 {[%clk 0:02:49.3]} 12. O-O-O {[%clk 0:02:38.5]}
12... Bf5 {[%clk 0:02:31.5]} 13. Qxd8 {[%clk 0:02:26.9]} 13... Rfxd8 {[%clk
0:02:32.4]} 14. Bc4 {[%clk 0:02:26.4]} 14... Bg4 {[%clk 0:02:23.9]} 15. Rxd8+
{[%clk 0:02:22]} 15... Rxd8 {[%clk 0:02:24.8]} 16. e6 {[%clk 0:02:17.9]} 16...
fxe6 {[%clk 0:01:39.1]} 17. a4 {[%clk 0:02:09.4]} 17... Kf8 {[%clk 0:01:35.4]}
18. f3 {[%clk 0:02:00.3]} 18... Bf5 {[%clk 0:01:26.9]} 19. Rf1 {[%clk
0:01:39.2]} 19... exf3 {[%clk 0:01:09]} 20. gxf3 {[%clk 0:01:35.7]} 20... e5
{[%clk 0:01:09.4]} 21. Bg5 {[%clk 0:01:29]} 21... Bf6 {[%clk 0:01:09.8]} 22.
Bh6+ {[%clk 0:01:06.9]} 22... Bg7 {[%clk 0:00:58.9]} 23. Bxg7+ {[%clk
0:01:04.8]} 23... Kxg7 {[%clk 0:00:59]} 24. e4 {[%clk 0:01:05.4]} 24... Bh3
{[%clk 0:00:54.6]} 25. Rg1 {[%clk 0:01:04]} 25... Kf6 {[%clk 0:00:52.2]} 26. Rg3
{[%clk 0:01:01]} 26... Bc8 {[%clk 0:00:50.5]} 27. a5 {[%clk 0:01:00.1]} 27... b5
{[%clk 0:00:46.2]} 28. Bd3 {[%clk 0:00:42.3]} 28... Be6 {[%clk 0:00:43.6]} 29.
b4 {[%clk 0:00:41.1]} 29... a6 {[%clk 0:00:40.3]} 30. Kb2 {[%clk 0:00:37]} 30...
c5 {[%clk 0:00:34.5]} 31. bxc5 {[%clk 0:00:32.5]} 31... Rc8 {[%clk 0:00:34.8]}
32. Rg5 {[%clk 0:00:27.4]} 32... Rxc5 {[%clk 0:00:29]} 33. f4 {[%clk 0:00:27.3]}
33... Bf7 {[%clk 0:00:15.5]} 34. c3 {[%clk 0:00:21.9]} 34... Ke6 {[%clk
0:00:13.8]} 35. f5+ {[%clk 0:00:19.7]} 35... Kf6 {[%clk 0:00:14.2]} 36. fxg6
{[%clk 0:00:17.3]} 36... Bxg6 {[%clk 0:00:15.1]} 37. Kb3 {[%clk 0:00:15.9]}
37... Rc6 {[%clk 0:00:13]} 38. Kb4 {[%clk 0:00:14.6]} 38... Rd6 {[%clk
0:00:12.1]} 39. Be2 {[%clk 0:00:13.1]} 39... Bxe4 {[%clk 0:00:08.3]} 40. Bxh5
{[%clk 0:00:13]} 40... Bf5 {[%clk 0:00:08.1]} 41. Bg4 {[%clk 0:00:11.8]} 41...
Bxg4 {[%clk 0:00:07.9]} 42. Rxg4 {[%clk 0:00:12]} 42... Kf5 {[%clk 0:00:08.5]}
43. Rg7 {[%clk 0:00:11.5]} 43... e4 {[%clk 0:00:07.8]} 44. Rxe7 {[%clk
0:00:10.4]} 44... Kf4 {[%clk 0:00:04.6]} 45. Kc5 {[%clk 0:00:09.5]} 45... Rd3
{[%clk 0:00:04.3]} 46. Kb6 {[%clk 0:00:09.1]} 46... Rxc3 {[%clk 0:00:04.8]} 47.
Kxa6 {[%clk 0:00:09.3]} 47... b4 {[%clk 0:00:05.4]} 48. h5 {[%clk 0:00:06.5]}
48... b3 {[%clk 0:00:04.5]} 49. h6 {[%clk 0:00:06.2]} 49... b2 {[%clk 0:00:05]}
50. Rb7 {[%clk 0:00:06.3]} 50... Rh3 {[%clk 0:00:04.1]} 51. h7 {[%clk
0:00:04.5]} 51... Rh6+ {[%clk 0:00:03.1]} 0-1

[Event "*** SCC Grand Prix: Titled Tuesday Blitz"]
[Site "Chess.com"]
[Date "2020.07.07"]
[Round "2"]
[White "ShahMatKanal"]
[Black "theblitzchamp"]
[Result "0-1"]
[WhiteElo "2503"]
[BlackElo "2742"]
[TimeControl "180+1"]
[EndTime "10:19:08 PDT"]
[Termination "theblitzchamp won by resignation"]

1. d4 {[%clk 0:03:00.9]} 1... d5 {[%clk 0:02:59.8]} 2. c4 {[%clk 0:03:00.9]}
2... c6 {[%clk 0:02:59.5]} 3. Nf3 {[%clk 0:03:00.2]} 3... Nf6 {[%clk 0:02:59.9]}
4. e3 {[%clk 0:02:59.7]} 4... e6 {[%clk 0:02:59.9]} 5. Nc3 {[%clk 0:02:59]} 5...
Nbd7 {[%clk 0:03:00.3]} 6. cxd5 {[%clk 0:02:56.1]} 6... exd5 {[%clk 0:02:55.9]}
7. Bd3 {[%clk 0:02:55.9]} 7... g6 {[%clk 0:02:50.6]} 8. O-O {[%clk 0:02:55.2]}
8... Bg7 {[%clk 0:02:51]} 9. b4 {[%clk 0:02:48.8]} 9... O-O {[%clk 0:02:50.5]}
10. a4 {[%clk 0:02:47.1]} 10... Re8 {[%clk 0:02:50.8]} 11. Ba3 {[%clk
0:02:36.9]} 11... Ne4 {[%clk 0:02:21.6]} 12. Qc2 {[%clk 0:02:33.2]} 12... Ndf6
{[%clk 0:02:19.3]} 13. Ne5 {[%clk 0:02:29.8]} 13... Nxc3 {[%clk 0:01:50.1]} 14.
Qxc3 {[%clk 0:02:30.7]} 14... Ne4 {[%clk 0:01:50.5]} 15. Qc2 {[%clk 0:02:30.5]}
15... Nd6 {[%clk 0:01:42.9]} 16. b5 {[%clk 0:02:22.2]} 16... cxb5 {[%clk
0:01:42.4]} 17. axb5 {[%clk 0:02:21.7]} 17... Be6 {[%clk 0:01:40.4]} 18. f4
{[%clk 0:02:10.5]} 18... Nc4 {[%clk 0:01:16.4]} 19. Qf2 {[%clk 0:01:38.3]} 19...
f6 {[%clk 0:00:38.8]} 20. Nf3 {[%clk 0:01:25]} 20... Bf7 {[%clk 0:00:36.9]} 21.
Rfe1 {[%clk 0:01:21.3]} 21... Qd7 {[%clk 0:00:36.5]} 22. Bxc4 {[%clk 0:01:10.6]}
22... dxc4 {[%clk 0:00:36.6]} 23. e4 {[%clk 0:01:11.2]} 23... Qxb5 {[%clk
0:00:34.4]} 24. d5 {[%clk 0:01:11.5]} 24... f5 {[%clk 0:00:26.6]} 25. Rab1
{[%clk 0:00:58.5]} 25... Qa6 {[%clk 0:00:24.3]} 26. e5 {[%clk 0:00:44.3]} 26...
Qxa3 {[%clk 0:00:23.2]} 27. e6 {[%clk 0:00:44.3]} 27... b6 {[%clk 0:00:21.3]}
28. Ng5 {[%clk 0:00:40.5]} 28... Bxe6 {[%clk 0:00:21.6]} 29. dxe6 {[%clk
0:00:39.8]} 29... Qd6 {[%clk 0:00:20.8]} 30. Qh4 {[%clk 0:00:35.2]} 30... h6
{[%clk 0:00:19.4]} 31. Nf7 {[%clk 0:00:35.8]} 31... Qe7 {[%clk 0:00:17.3]} 32.
Nxh6+ {[%clk 0:00:34.3]} 32... Bxh6 {[%clk 0:00:12.8]} 33. Qxh6 {[%clk
0:00:35.2]} 33... Qg7 {[%clk 0:00:13.2]} 34. Qh3 {[%clk 0:00:32.6]} 34... Rac8
{[%clk 0:00:12.6]} 35. Qa3 {[%clk 0:00:29]} 35... Rc7 {[%clk 0:00:12.3]} 36. Qd6
{[%clk 0:00:27.3]} 36... Rce7 {[%clk 0:00:12.2]} 37. Rb4 {[%clk 0:00:24.1]}
37... Qf6 {[%clk 0:00:10.4]} 38. Rxc4 {[%clk 0:00:23.5]} 38... Rxe6 {[%clk
0:00:08.1]} 39. Rxe6 {[%clk 0:00:24.4]} 39... Rxe6 {[%clk 0:00:08.7]} 40. Rc8+
{[%clk 0:00:22.2]} 40... Kh7 {[%clk 0:00:09.2]} 41. Qd3 {[%clk 0:00:09]} 41...
Qh4 {[%clk 0:00:04.8]} 42. Qd7+ {[%clk 0:00:07.6]} 42... Re7 {[%clk 0:00:05.2]}
43. g3 {[%clk 0:00:06.7]} 43... Qxg3+ {[%clk 0:00:04.3]} 44. hxg3 {[%clk
0:00:07.6]} 44... Rxd7 {[%clk 0:00:05.2]} 45. Ra8 {[%clk 0:00:07.7]} 45... Kg7
{[%clk 0:00:05.7]} 46. Kf2 {[%clk 0:00:08]} 46... Rb7 {[%clk 0:00:06.3]} 47. Kf3
{[%clk 0:00:08.9]} 47... b5 {[%clk 0:00:07]} 48. Rd8 {[%clk 0:00:07.4]} 48... b4
{[%clk 0:00:07]} 49. Rd1 {[%clk 0:00:08.3]} 49... b3 {[%clk 0:00:07.3]} 50. Rb1
{[%clk 0:00:09.2]} 50... b2 {[%clk 0:00:07.9]} 51. Ke3 {[%clk 0:00:10]} 51... a5
{[%clk 0:00:08.5]} 52. Kd3 {[%clk 0:00:10.9]} 52... a4 {[%clk 0:00:09.2]} 53.
Kc3 {[%clk 0:00:11.8]} 53... a3 {[%clk 0:00:09.8]} 0-1

[Event "*** SCC Grand Prix: Titled Tuesday Blitz"]
[Site "Chess.com"]
[Date "2020.07.07"]
[Round "2"]
[White "UCantHandleDenker"]
[Black "rpragchess"]
[Result "0-1"]
[WhiteElo "2536"]
[BlackElo "2815"]
[TimeControl "180+1"]
[EndTime "10:19:10 PDT"]
[Termination "rpragchess won on time"]

1. Nf3 {[%clk 0:02:57.4]} 1... Nf6 {[%clk 0:02:59.4]} 2. g3 {[%clk 0:02:56.5]}
2... b6 {[%clk 0:02:52]} 3. Bg2 {[%clk 0:02:55.6]} 3... Bb7 {[%clk 0:02:52.9]}
4. O-O {[%clk 0:02:53.5]} 4... g6 {[%clk 0:02:52.6]} 5. c4 {[%clk 0:02:51.7]}
5... c5 {[%clk 0:02:52.1]} 6. Nc3 {[%clk 0:02:51.1]} 6... Bg7 {[%clk 0:02:51.4]}
7. d4 {[%clk 0:02:50.7]} 7... cxd4 {[%clk 0:02:49]} 8. Qxd4 {[%clk 0:02:50.1]}
8... O-O {[%clk 0:02:48]} 9. Qh4 {[%clk 0:02:45.6]} 9... d6 {[%clk 0:02:45.7]}
10. Rd1 {[%clk 0:02:34.8]} 10... Nbd7 {[%clk 0:02:45]} 11. Bh6 {[%clk
0:02:31.8]} 11... Rc8 {[%clk 0:02:42.4]} 12. b3 {[%clk 0:02:26.9]} 12... Rc5
{[%clk 0:02:40.3]} 13. Bxg7 {[%clk 0:02:21.9]} 13... Kxg7 {[%clk 0:02:39.7]} 14.
Rac1 {[%clk 0:02:19.5]} 14... Qa8 {[%clk 0:02:36.8]} 15. Qd4 {[%clk 0:02:12.5]}
15... Kg8 {[%clk 0:02:29.4]} 16. Ne1 {[%clk 0:02:08.7]} 16... Bxg2 {[%clk
0:02:23.3]} 17. Nxg2 {[%clk 0:02:08.9]} 17... Rfc8 {[%clk 0:02:23.9]} 18. Ne3
{[%clk 0:02:04.2]} 18... b5 {[%clk 0:01:27.7]} 19. Nxb5 {[%clk 0:01:30.7]} 19...
Nb6 {[%clk 0:01:22]} 20. Nc3 {[%clk 0:01:24.7]} 20... a5 {[%clk 0:01:11.4]} 21.
Rb1 {[%clk 0:01:13.1]} 21... a4 {[%clk 0:01:03.1]} 22. Rd2 {[%clk 0:00:48]}
22... axb3 {[%clk 0:00:30.2]} 23. axb3 {[%clk 0:00:47]} 23... Qb7 {[%clk
0:00:30.7]} 24. Rdb2 {[%clk 0:00:40.3]} 24... h5 {[%clk 0:00:28.9]} 25. h4
{[%clk 0:00:35.8]} 25... R5c7 {[%clk 0:00:20.4]} 26. Ra2 {[%clk 0:00:29.9]}
26... Rd7 {[%clk 0:00:15.2]} 27. Rba1 {[%clk 0:00:28.4]} 27... e5 {[%clk
0:00:14.4]} 28. Qd2 {[%clk 0:00:27.2]} 28... d5 {[%clk 0:00:14.8]} 29. Ncxd5
{[%clk 0:00:24.7]} 29... Nbxd5 {[%clk 0:00:14.7]} 30. cxd5 {[%clk 0:00:23]}
30... Nxd5 {[%clk 0:00:15.6]} 31. Nxd5 {[%clk 0:00:19.5]} 31... Rxd5 {[%clk
0:00:16.5]} 32. Qe3 {[%clk 0:00:17.9]} 32... Rb5 {[%clk 0:00:14.3]} 33. Ra7
{[%clk 0:00:15.1]} 33... Qd5 {[%clk 0:00:14.4]} 34. Rc1 {[%clk 0:00:11.4]} 34...
Rxc1+ {[%clk 0:00:09.3]} 35. Qxc1 {[%clk 0:00:10.9]} 35... Rxb3 {[%clk
0:00:09.4]} 36. Qc8+ {[%clk 0:00:09.6]} 36... Kg7 {[%clk 0:00:09.3]} 37. Qc1
{[%clk 0:00:02]} 37... Qe4 {[%clk 0:00:09]} 38. Ra1 {[%clk 0:00:01.3]} 38...
Qxe2 {[%clk 0:00:08.6]} 39. Qf1 {[%clk 0:00:02.2]} 39... Qf3 {[%clk 0:00:08.3]}
0-1

[Event "*** SCC Grand Prix: Titled Tuesday Blitz"]
[Site "Chess.com"]
[Date "2020.07.07"]
[Round "2"]
[White "Bazarov04"]
[Black "peixe64"]
[Result "0-1"]
[WhiteElo "2620"]
[BlackElo "2330"]
[TimeControl "180+1"]
[EndTime "10:19:10 PDT"]
[Termination "peixe64 won by checkmate"]

1. d4 {[%clk 0:02:59.9]} 1... Nf6 {[%clk 0:03:00.1]} 2. Nf3 {[%clk 0:02:59.7]}
2... g6 {[%clk 0:02:58.4]} 3. c4 {[%clk 0:02:59.1]} 3... Bg7 {[%clk 0:02:58.4]}
4. Nc3 {[%clk 0:02:59.5]} 4... d5 {[%clk 0:02:58.7]} 5. Qb3 {[%clk 0:02:59.4]}
5... dxc4 {[%clk 0:02:58.2]} 6. Qxc4 {[%clk 0:03:00.3]} 6... c6 {[%clk
0:02:58.8]} 7. e4 {[%clk 0:02:58.8]} 7... O-O {[%clk 0:02:58.8]} 8. Be2 {[%clk
0:02:56.6]} 8... b5 {[%clk 0:02:57.5]} 9. Qb3 {[%clk 0:02:56.5]} 9... Be6 {[%clk
0:02:44]} 10. Qc2 {[%clk 0:02:56.1]} 10... Qa5 {[%clk 0:02:39.7]} 11. O-O {[%clk
0:02:55.1]} 11... b4 {[%clk 0:02:38.1]} 12. Nb1 {[%clk 0:02:03.3]} 12... b3
{[%clk 0:02:17.2]} 13. Qd3 {[%clk 0:02:03.1]} 13... bxa2 {[%clk 0:02:09.9]} 14.
Nc3 {[%clk 0:02:01.8]} 14... Rd8 {[%clk 0:01:55.9]} 15. Ng5 {[%clk 0:01:29.4]}
15... Bb3 {[%clk 0:01:38]} 16. e5 {[%clk 0:01:29.2]} 16... Nd5 {[%clk
0:01:15.7]} 17. Nce4 {[%clk 0:01:25.4]} 17... h6 {[%clk 0:00:52.9]} 18. Nxf7
{[%clk 0:01:19.1]} 18... Kxf7 {[%clk 0:00:48.9]} 19. Qxb3 {[%clk 0:01:18.8]}
19... Nd7 {[%clk 0:00:32.1]} 20. Rxa2 {[%clk 0:01:12]} 20... Qb6 {[%clk
0:00:31.9]} 21. e6+ {[%clk 0:00:27.1]} 21... Kxe6 {[%clk 0:00:29.8]} 22. Qh3+
{[%clk 0:00:27.2]} 22... Kf7 {[%clk 0:00:25.4]} 23. Bxh6 {[%clk 0:00:27.5]}
23... Rh8 {[%clk 0:00:16]} 24. Qxd7 {[%clk 0:00:18.2]} 24... Rxh6 {[%clk
0:00:13.9]} 25. Bc4 {[%clk 0:00:15.9]} 25... Rd8 {[%clk 0:00:11.9]} 26. Qg4
{[%clk 0:00:11.4]} 26... Qxd4 {[%clk 0:00:11]} 27. Ng5+ {[%clk 0:00:11]} 27...
Ke8 {[%clk 0:00:08.8]} 28. Qxd4 {[%clk 0:00:08.8]} 28... Bxd4 {[%clk 0:00:09.7]}
29. Ne6 {[%clk 0:00:09.6]} 29... Be5 {[%clk 0:00:09.1]} 30. g3 {[%clk
0:00:08.6]} 30... Rd6 {[%clk 0:00:08.6]} 31. Ng5 {[%clk 0:00:08.7]} 31... Nf6
{[%clk 0:00:06.7]} 32. Kg2 {[%clk 0:00:08.1]} 32... Rd4 {[%clk 0:00:05.9]} 33.
Bf7+ {[%clk 0:00:06.9]} 33... Kf8 {[%clk 0:00:05.7]} 34. Bb3 {[%clk 0:00:07.2]}
34... Ke8 {[%clk 0:00:04.6]} 35. Rxa7 {[%clk 0:00:06.4]} 35... Rd2 {[%clk
0:00:02.7]} 36. Bc4 {[%clk 0:00:04.8]} 36... Ng4 {[%clk 0:00:02]} 37. Nh3 {[%clk
0:00:03.9]} 37... Ne3+ {[%clk 0:00:01.9]} 38. Kf3 {[%clk 0:00:03.7]} 38... Nxc4
{[%clk 0:00:02.3]} 39. Re1 {[%clk 0:00:03.1]} 39... Bd6 {[%clk 0:00:03.2]} 40.
Ng5 {[%clk 0:00:03.3]} 40... Rh5 {[%clk 0:00:03.5]} 41. Ne4 {[%clk 0:00:03.4]}
41... Rf5+ {[%clk 0:00:03.9]} 42. Kg2 {[%clk 0:00:03.6]} 42... Rc2 {[%clk
0:00:02.7]} 43. b3 {[%clk 0:00:03.8]} 43... Ne5 {[%clk 0:00:02.3]} 44. Nxd6+
{[%clk 0:00:04]} 44... exd6 {[%clk 0:00:03.2]} 45. g4 {[%clk 0:00:03.8]} 45...
Rf4 {[%clk 0:00:03.3]} 46. Kg3 {[%clk 0:00:04.7]} 46... Rxg4+ {[%clk 0:00:03.6]}
47. Kh3 {[%clk 0:00:05.3]} 47... Rc3+ {[%clk 0:00:04.3]} 48. f3 {[%clk
0:00:05.4]} 48... Rxf3# {[%clk 0:00:05]} 0-1